bitfinex/quotes_BTCUSD_20230405
["timestamp","ask_amount","ask_price","bid_price","bid_amount"]
[1680693536361,9.34953581,28483.0,28482.0,0.31183624]
[1680693538532,9.34953581,28483.0,28482.0,0.32939224]
[1680693538815,9.34953581,28483.0,28482.0,0.31183624]
[1680693538947,9.34953581,28483.0,28482.0,0.32921524]
[1680693540209,9.34953581,28483.0,28482.0,0.32897224]
[1680693540460,9.34953581,28483.0,28482.0,0.32780024]
[1680693549766,9.34891926,28483.0,28482.0,0.32792024]
[1680693552044,9.32838409,28483.0,28482.0,0.32792024]
[1680693552698,9.32494826,28483.0,28482.0,0.32792024]
[1680693553991,9.41117284,28483.0,28482.0,0.31183624]
[1680693554864,9.41117284,28483.0,28482.0,0.52232884]
[1680693555079,9.41117284,28483.0,28482.0,0.31183624]
[1680693555422,9.41117284,28483.0,28482.0,0.52229339]
[1680693559374,8.97091969,28483.0,28482.0,0.53953639]
[1680693559578,8.97091969,28483.0,28482.0,0.52229339]
[1680693562339,8.97091969,28483.0,28482.0,0.48015552]
[1680693563321,8.97091969,28483.0,28482.0,0.49721152]
[1680693563516,8.97091969,28483.0,28482.0,0.48015552]
[1680693567167,8.97091969,28483.0,28482.0,0.69061267]
[1680693567483,8.97091969,28483.0,28482.0,0.48015552]
[1680693568134,8.97030855,28483.0,28482.0,0.48027552]
[1680693569346,9.3896156,28483.0,28482.0,0.48027552]
[1680693576071,9.3901256,28483.0,28482.0,0.47903533]
[1680693581380,9.3901256,28483.0,28482.0,0.68949248]
[1680693581581,8.97081855,28483.0,28482.0,0.68949248]
[1680693582655,8.97081855,28483.0,28482.0,0.5211732]
[1680693584377,8.97081855,28483.0,28482.0,0.68947479]
[1680693584602,9.31824177,28483.0,28482.0,0.68947479]
[1680693586516,9.31824177,28483.0,28482.0,0.5211732]
[1680693586724,9.31824177,28483.0,28482.0,0.68947898]
[1680693586934,9.31824177,28483.0,28482.0,0.5211732]
[1680693587172,9.31824177,28483.0,28482.0,0.68947975]
[1680693587382,9.31824177,28483.0,28482.0,0.5211732]
[1680693588051,8.97081855,28483.0,28482.0,0.5211732]
[1680693590974,8.97081855,28483.0,28482.0,0.70074876]
[1680693591383,8.97081855,28483.0,28482.0,0.71771776]
[1680693591605,8.97081855,28483.0,28482.0,0.70074876]
[1680693592802,8.97081855,28483.0,28482.0,0.5211732]
[1680693594310,8.96081855,28483.0,28482.0,0.5212332]
[1680693594645,8.96030855,28483.0,28482.0,0.5212932]
[1680693597917,8.96030855,28483.0,28482.0,0.5212332]
[1680693598215,8.96081855,28483.0,28482.0,0.5950732]
[1680693598840,8.96030855,28483.0,28482.0,0.5212932]
[1680693599467,8.96030855,28483.0,28482.0,0.31083605]
[1680693599881,9.3502848,28483.0,28482.0,0.52134932]
[1680693605969,8.96030855,28483.0,28482.0,0.52134932]
[1680693606217,9.31438153,28483.0,28482.0,0.52134932]
[1680693609308,9.66909209,28483.0,28482.0,0.52134932]
[1680693609514,9.71193109,28483.0,28482.0,0.52134932]
[1680693610405,9.71093109,28483.0,28482.0,0.52134932]
[1680693611301,9.71093109,28483.0,28482.0,0.68975553]
[1680693611513,9.66809209,28483.0,28482.0,0.68975553]
[1680693611716,9.67109209,28483.0,28482.0,0.69175553]
[1680693611920,9.66809209,28483.0,28482.0,0.68975553]
[1680693612129,9.67009209,28483.0,28482.0,0.69175553]
[1680693614043,9.67009209,28483.0,28482.0,0.52792374]
[1680693614258,9.67060209,28483.0,28482.0,0.52780374]
[1680693614483,9.67060209,28483.0,28482.0,0.56823612]
[1680693618217,9.31652911,28483.0,28482.0,0.35772285]
[1680693618420,9.65511997,28483.0,28482.0,0.35772285]
[1680693620041,9.31652911,28483.0,28482.0,0.35772285]
[1680693620265,9.38832911,28483.0,28482.0,0.27151264]
[1680693620462,9.77253777,28483.0,28482.0,0.27351264]
[1680693620674,9.78073291,28483.0,28482.0,0.27351264]
[1680693620875,9.43336811,28483.0,28482.0,0.27351264]
[1680693621084,9.83288765,28483.0,28482.0,0.27151264]
[1680693621289,9.43236811,28483.0,28482.0,0.27351264]
[1680693621947,9.82240734,28483.0,28482.0,0.27351264]
[1680693623548,9.82240734,28483.0,28482.0,0.27151264]
[1680693623758,9.83440734,28483.0,28482.0,0.18731664]
[1680693624129,9.82240734,28483.0,28482.0,0.18731664]
[1680693624303,9.83440734,28483.0,28482.0,0.18731664]
[1680693626939,9.83440734,28483.0,28482.0,0.18351198]
[1680693627153,9.71656834,28483.0,28482.0,0.18351198]
[1680693628980,9.75932434,28483.0,28482.0,0.18351198]
[1680693629200,9.75811534,28483.0,28482.0,0.18351198]
[1680693629425,9.71656834,28483.0,28482.0,0.18351198]
[1680693630178,9.71656834,28483.0,28482.0,0.18315002]
[1680693630360,9.75733034,28483.0,28482.0,0.18315002]
[1680693631124,9.75890034,28483.0,28482.0,0.18315002]
[1680693631749,9.71656834,28483.0,28482.0,0.18315002]
[1680693632007,9.72007834,28483.0,28482.0,0.18315002]
[1680693632353,9.72007834,28483.0,28482.0,0.14271764]
[1680693633226,9.75949134,28483.0,28482.0,0.14271764]
[1680693633647,9.72007834,28483.0,28482.0,0.14271764]
[1680693634696,9.71656834,28483.0,28482.0,0.14271764]
[1680693635934,9.36185778,28483.0,28482.0,0.14271764]
[1680693636714,9.36185778,28483.0,28482.0,0.12274596]
[1680693636910,9.36185778,28483.0,28482.0,0.104232]
[1680693637114,9.36185778,28483.0,28482.0,0.05967955]
[1680693637311,9.36134778,28483.0,28482.0,0.04133549]
[1680693638313,0.25327651,28482.0,28481.0,0.06661601]
[1680693640347,0.19817651,28482.0,28481.0,0.07104387]
[1680693641638,0.19817651,28482.0,28481.0,0.19733179]
[1680693641850,0.19868651,28482.0,28481.0,0.07104387]
[1680693642087,0.19817651,28482.0,28481.0,0.07104387]
[1680693642500,0.19817651,28482.0,28481.0,0.06812155]
[1680693643460,0.19817651,28482.0,28481.0,0.21134147]
[1680693643666,0.19868651,28482.0,28481.0,0.21134147]
[1680693644557,0.19868651,28482.0,28481.0,0.19440947]
[1680693645670,0.19868651,28482.0,28481.0,0.21103147]
[1680693646071,0.19868651,28482.0,28481.0,0.19440947]
[1680693646277,0.19868651,28482.0,28481.0,0.06812155]
[1680693646435,0.19817651,28482.0,28481.0,0.06812155]
[1680693646832,0.19817651,28482.0,28481.0,0.19440947]
[1680693647037,0.19868651,28482.0,28481.0,0.19440947]
[1680693647580,0.19868651,28482.0,28481.0,0.06812155]
[1680693647796,0.19817651,28482.0,28481.0,0.06812155]
[1680693648395,0.35971056,28482.0,28481.0,0.06812155]
[1680693648638,0.66313639,28482.0,28481.0,0.06812155]
[1680693650101,0.62186439,28482.0,28481.0,0.06812155]
[1680693650305,0.66453939,28482.0,28481.0,0.06812155]
[1680693650504,0.66453939,28482.0,28481.0,0.06535859]
[1680693651858,0.66453939,28482.0,28481.0,0.19164651]
[1680693652300,0.66453939,28482.0,28481.0,0.06535859]
[1680693652939,0.66453939,28482.0,28481.0,0.19164651]
[1680693653929,0.62186439,28482.0,28481.0,0.06535859]
[1680693654135,0.66247939,28482.0,28481.0,0.06535859]
[1680693654351,0.62186439,28482.0,28481.0,0.06535859]
[1680693654547,0.66471739,28482.0,28481.0,0.06535859]
[1680693657773,0.62186439,28482.0,28481.0,0.06535859]
[1680693659697,0.62186439,28482.0,28481.0,0.19164651]
[1680693661260,0.62186439,28482.0,28481.0,0.06535859]
[1680693661677,0.62186439,28482.0,28481.0,0.19164651]
[1680693663209,0.79186439,28482.0,28481.0,0.19164651]
[1680693663427,0.83390839,28482.0,28481.0,0.19164651]
[1680693663644,0.83390839,28482.0,28481.0,0.15468792]
[1680693664097,0.79186439,28482.0,28481.0,0.15468792]
[1680693670345,0.79186439,28482.0,28481.0,0.32309413]
[1680693670555,0.79186439,28482.0,28481.0,0.15468792]
[1680693672374,0.79186439,28482.0,28481.0,0.1519073]
[1680693673206,0.79186439,28482.0,28481.0,0.14706859]
[1680693673422,0.79186439,28482.0,28481.0,0.14595124]
[1680693675233,0.79186439,28482.0,28481.0,0.16341724]
[1680693675524,0.79186439,28482.0,28481.0,0.14595124]
[1680693677897,0.79186439,28482.0,28481.0,0.12718364]
[1680693680492,0.83271039,28482.0,28481.0,0.12718364]
[1680693680695,0.79186439,28482.0,28481.0,0.12718364]
[1680693682033,0.78659474,28482.0,28481.0,0.08510285]
[1680693684204,0.78659474,28482.0,28481.0,0.08213374]
[1680693684410,0.78659474,28482.0,28481.0,0.10253374]
[1680693685482,0.78659474,28482.0,28481.0,0.07964066]
[1680693689889,0.78659474,28482.0,28481.0,0.0769716]
[1680693691408,0.53022056,28482.0,28481.0,0.0204]
[1680693691620,0.64493356,28482.0,28481.0,0.0204]
[1680693691831,0.64493356,28482.0,28479.0,0.14853449]
[1680693692040,0.35471056,28481.0,28479.0,0.14853449]
[1680693692258,0.35471056,28481.0,28479.0,0.14865449]
[1680693692699,0.35471056,28481.0,28479.0,0.14853449]
[1680693693603,0.35571056,28481.0,28479.0,0.15053449]
[1680693694055,0.29400257,28480.0,28479.0,0.15053449]
[1680693694263,0.64871313,28480.0,28479.0,0.14865449]
[1680693694494,0.64871313,28480.0,28479.0,0.15065449]
[1680693694706,0.64871313,28480.0,28479.0,0.14865449]
[1680693694924,0.66071313,28480.0,28479.0,0.14865449]
[1680693701341,0.36722056,28480.0,28478.0,0.625326]
[1680693701581,0.36722056,28480.0,28479.0,0.016222]
[1680693702403,0.37073156,28480.0,28478.0,0.625146]
[1680693702609,0.37073156,28480.0,28478.0,0.24702862]
[1680693702815,0.60303603,28480.0,28478.0,0.24702862]
[1680693703551,0.59103603,28480.0,28478.0,0.24702862]
[1680693703750,0.59603603,28480.0,28478.0,0.24702862]
[1680693703960,0.59603603,28480.0,28478.0,0.17312862]
[1680693704168,0.59552603,28480.0,28478.0,0.17312862]
[1680693704351,0.59552603,28480.0,28479.0,0.08417137]
[1680693704551,0.59603603,28480.0,28478.0,0.17324862]
[1680693704768,0.59252503,28480.0,28478.0,0.17312862]
[1680693705410,0.59252503,28480.0,28479.0,0.08417042]
[1680693705797,0.59252503,28480.0,28479.0,0.08417035]
[1680693706053,0.59252503,28480.0,28478.0,0.17324862]
[1680693706263,0.59201503,28480.0,28479.0,0.08417035]
[1680693706475,0.58752503,28480.0,28478.0,0.17042491]
[1680693706684,0.22668633,28479.0,28478.0,0.17042491]
[1680693706865,0.19678633,28479.0,28478.0,0.18840491]
[1680693707186,0.19678633,28479.0,28478.0,0.19370491]
[1680693707394,0.19678633,28479.0,28478.0,0.17572491]
[1680693707593,0.55149689,28479.0,28478.0,0.17572491]
[1680693707814,0.55158689,28479.0,28478.0,0.17572491]
[1680693708032,0.55200689,28479.0,28478.0,0.17572491]
[1680693708240,0.55700689,28479.0,28478.0,0.17572491]
[1680693714050,0.36022056,28479.0,28478.0,0.17572491]
[1680693714548,0.00551,28479.0,28478.0,0.54895062]
[1680693714796,0.005,28479.0,28478.0,0.60799368]
[1680693715645,0.35971056,28479.0,28478.0,0.60799368]
[1680693715857,0.00551,28479.0,28478.0,0.75940601]
[1680693716074,0.005,28479.0,28478.0,0.75940601]
[1680693717357,0.005,28479.0,28478.0,0.59105768]
[1680693717772,0.005,28479.0,28478.0,0.66475768]
[1680693717984,0.005,28479.0,28478.0,0.68090068]
[1680693718349,0.005,28479.0,28478.0,0.66475768]
[1680693718549,0.005,28479.0,28478.0,0.68257168]
[1680693719042,0.005,28479.0,28478.0,0.60927168]
[1680693719222,0.005,28479.0,28478.0,0.59145768]
[1680693720291,0.005,28479.0,28478.0,0.60781568]
[1680693721553,0.005,28479.0,28478.0,0.38178997]
[1680693721769,0.005,28479.0,28478.0,0.42335811]
[1680693721991,0.005,28479.0,28478.0,0.77806867]
[1680693722210,0.005,28479.0,28478.0,0.67288726]
[1680693722636,0.005,28479.0,28478.0,0.6700397]
[1680693722855,0.005,28479.0,28478.0,0.8178397]
[1680693723072,0.005,28479.0,28478.0,0.83538343]
[1680693723744,0.17051,28482.0,28478.0,0.83538343]
[1680693723948,0.17,28482.0,28481.0,0.2956]
[1680693724172,0.17051,28482.0,28481.0,0.66901156]
[1680693725463,0.17051,28482.0,28481.0,0.8793279]
[1680693725673,0.17051,28482.0,28481.0,1.26725937]
[1680693725889,0.17351,28482.0,28481.0,1.27025937]
[1680693726316,0.17351,28482.0,28481.0,1.12215937]
[1680693726522,0.173,28482.0,28481.0,1.12215937]
[1680693726734,0.17351,28482.0,28481.0,1.12215937]
[1680693727363,0.17351,28482.0,28481.0,0.76744881]
[1680693727573,0.17351,28482.0,28481.0,0.77374881]
[1680693727778,0.17336,28482.0,28481.0,0.76760413]
[1680693728023,0.173,28482.0,28481.0,0.76760413]
[1680693728660,0.173,28482.0,28481.0,0.9357702]
[1680693728874,0.173,28482.0,28481.0,0.76760413]
[1680693729095,0.173,28482.0,28481.0,0.93576939]
[1680693729299,0.173,28482.0,28481.0,0.76760413]
[1680693729503,0.173,28482.0,28481.0,0.93576215]
[1680693730343,0.17,28482.0,28481.0,0.93276214]
[1680693730580,0.173,28482.0,28481.0,0.9357335]
[1680693731003,0.173,28482.0,28481.0,0.72541716]
[1680693731273,0.173,28482.0,28481.0,0.9357335]
[1680693731496,0.173,28482.0,28481.0,0.72541716]
[1680693736505,0.173,28482.0,28481.0,0.69219625]
[1680693736706,0.173,28482.0,28481.0,1.1188381]
[1680693737039,0.173,28482.0,28481.0,0.67196688]
[1680693737253,0.173,28482.0,28481.0,1.08208765]
[1680693738120,0.173,28482.0,28481.0,0.67196688]
[1680693738536,0.173,28482.0,28481.0,0.88195379]
[1680693738738,0.173,28482.0,28481.0,1.25031341]
[1680693742945,0.173,28482.0,28481.0,0.88195379]
[1680693743374,0.173,28482.0,28481.0,1.21352778]
[1680693746874,0.173,28482.0,28481.0,0.88195379]
[1680693748487,0.173,28482.0,28481.0,1.14803457]
[1680693748665,0.173,28482.0,28481.0,0.74019847]
[1680693748896,0.173,28482.0,28481.0,1.10076257]
[1680693749528,0.173,28482.0,28481.0,0.74019847]
[1680693751522,0.173,28482.0,28481.0,1.15191835]
[1680693752377,0.17290689,28482.0,28481.0,1.15191835]
[1680693753310,0.17290689,28482.0,28481.0,1.07781835]
[1680693755525,0.17290689,28482.0,28481.0,0.66609847]
[1680693755695,0.17290689,28482.0,28481.0,1.07391921]
[1680693756118,0.17290689,28482.0,28481.0,0.66609847]
[1680693756487,0.17290689,28482.0,28481.0,0.45611156]
[1680693756666,0.17290689,28482.0,28481.0,0.78254024]
[1680693756870,0.17290689,28482.0,28481.0,0.78266024]
[1680693757243,0.17290689,28482.0,28481.0,0.78272024]
[1680693757447,0.16990689,28482.0,28481.0,0.77972024]
[1680693757807,0.17090689,28482.0,28481.0,5.68772024]
[1680693758218,0.16990689,28482.0,28481.0,5.65972024]
[1680693758901,0.17090689,28482.0,28481.0,5.68772024]
[1680693760272,0.17090689,28482.0,28481.0,5.86327024]
[1680693762045,0.17090689,28482.0,28481.0,5.86206166]
[1680693762767,0.17090689,28482.0,28481.0,5.85706166]
[1680693763406,0.17090689,28482.0,28481.0,5.60453298]
[1680693764283,0.17090689,28482.0,28481.0,5.61303298]
[1680693770857,0.17090689,28482.0,28481.0,5.98582564]
[1680693771061,0.17090689,28482.0,28481.0,5.61303298]
[1680693771385,0.17090689,28482.0,28481.0,5.61302298]
[1680693772021,0.17090689,28482.0,28481.0,5.61301298]
[1680693772429,0.17090689,28482.0,28481.0,5.98580564]
[1680693772635,0.17090689,28482.0,28481.0,5.61301298]
[1680693778591,0.17090689,28482.0,28481.0,5.98580564]
[1680693779100,0.17090689,28482.0,28481.0,5.98581564]
[1680693779911,0.17090689,28482.0,28481.0,5.61302298]
[1680693780327,0.17090689,28482.0,28481.0,5.98581564]
[1680693780767,0.17090689,28482.0,28481.0,6.28581564]
[1680693781376,0.17090689,28482.0,28481.0,6.68581564]
[1680693782690,0.1707955,28482.0,28481.0,6.68581564]
[1680693787802,0.1707955,28482.0,28481.0,6.51027564]
[1680693788005,0.1707955,28482.0,28481.0,6.68581564]
[1680693788240,0.1707955,28482.0,28481.0,6.31302298]
[1680693788413,0.1707955,28482.0,28481.0,6.31314298]
[1680693789071,0.1707955,28482.0,28481.0,7.18314298]
[1680693790229,0.1707955,28482.0,28481.0,7.55224298]
[1680693791667,0.1697955,28482.0,28481.0,7.52424298]
[1680693791911,0.1697955,28482.0,28481.0,7.55224298]
[1680693792348,0.1697955,28482.0,28481.0,7.52424298]
[1680693792565,0.0739,28492.0,28481.0,7.52424298]
[1680693792566,0.19113076,28499.0,28492.0,1.1]
[1680693792792,0.19143076,28499.0,28498.0,1.1]
[1680693793006,0.19143076,28499.0,28498.0,1.35309878]
[1680693793223,0.0003,28499.0,28498.0,1.39511728]
[1680693793438,0.0003,28499.0,28498.0,1.185162]
[1680693793648,0.0003,28499.0,28498.0,1.114762]
[1680693793851,0.0003,28499.0,28498.0,1.120862]
[1680693794282,0.0003,28499.0,28498.0,1.24658037]
[1680693794504,0.0003,28499.0,28498.0,1.27558676]
[1680693794743,0.0003,28499.0,28498.0,1.47121125]
[1680693794948,0.0003,28499.0,28498.0,1.68746729]
[1680693795153,0.0003,28499.0,28498.0,1.81317915]
[1680693795578,0.0003,28499.0,28498.0,1.68746729]
[1680693795806,0.0003,28499.0,28498.0,1.81317895]
[1680693796041,0.0003,28499.0,28498.0,1.68746729]
[1680693796251,0.0003,28499.0,28498.0,1.95827524]
[1680693796454,0.0003,28499.0,28498.0,1.95217524]
[1680693798369,0.0003,28499.0,28498.0,1.86845336]
[1680693798802,0.0003,28499.0,28498.0,2.04389336]
[1680693799430,0.0003,28499.0,28498.0,2.11779336]
[1680693800107,0.0003,28499.0,28498.0,1.94235336]
[1680693804132,0.1703,28499.0,28498.0,1.94235336]
[1680693805712,0.0003,28499.0,28498.0,1.94235336]
[1680693808805,0.0003,28499.0,28498.0,1.86845336]
[1680693809218,3.124347,28500.0,28498.0,1.86845336]
[1680693809219,3.04752445,28500.0,28499.0,0.3691]
[1680693809436,3.04752445,28500.0,28499.0,1.12136856]
[1680693810189,3.04752445,28500.0,28499.0,1.14936856]
[1680693810397,3.04752445,28500.0,28499.0,1.12136856]
[1680693810608,3.04752445,28500.0,28499.0,1.13891229]
[1680693810806,3.04752445,28500.0,28499.0,1.24071229]
[1680693811963,3.04752445,28500.0,28499.0,1.94071229]
[1680693812385,3.04752445,28500.0,28499.0,1.91271229]
[1680693812592,3.04752445,28500.0,28499.0,1.94071229]
[1680693814304,3.04752445,28500.0,28499.0,2.29057599]
[1680693817611,3.04752445,28500.0,28499.0,2.31909923]
[1680693818162,3.04752445,28500.0,28499.0,2.49453923]
[1680693818808,3.04752445,28500.0,28499.0,1.79453923]
[1680693819233,3.04752445,28500.0,28499.0,1.61909923]
[1680693819421,2.94613447,28500.0,28499.0,1.4626318]
[1680693819646,2.94613447,28500.0,28499.0,1.56389741]
[1680693820090,2.94613447,28500.0,28499.0,1.56395741]
[1680693820302,2.94613447,28500.0,28499.0,2.18023553]
[1680693824589,2.94613447,28500.0,28499.0,3.29233831]
[1680693824590,2.93733441,28500.0,28499.0,3.29233831]
[1680693824807,2.93733441,28500.0,28499.0,3.84174963]
[1680693825024,2.93733441,28500.0,28499.0,3.67412514]
[1680693825454,2.93733441,28500.0,28499.0,3.64612514]
[1680693825674,2.93733441,28500.0,28499.0,3.10993357]
[1680693826362,2.93733441,28500.0,28499.0,3.04780295]
[1680693826567,2.93733441,28500.0,28499.0,3.28423084]
[1680693826781,2.82052855,28500.0,28499.0,3.28417084]
[1680693826985,2.81192855,28500.0,28499.0,3.28423084]
[1680693827441,2.81192855,28500.0,28499.0,3.28417084]
[1680693827442,2.80892855,28500.0,28499.0,3.28417084]
[1680693827657,2.80892855,28500.0,28499.0,3.25617084]
[1680693827869,2.80892855,28500.0,28499.0,3.28417084]
[1680693828082,2.80892855,28500.0,28499.0,3.25617084]
[1680693828293,2.80892855,28500.0,28499.0,3.28423084]
[1680693828714,2.80892855,28500.0,28499.0,3.28417084]
[1680693829426,2.80892855,28500.0,28499.0,3.07580295]
[1680693830969,2.80892855,28500.0,28499.0,3.04780295]
[1680693831180,2.80892855,28500.0,28499.0,3.04774295]
[1680693831415,2.79299831,28500.0,28499.0,3.11081295]
[1680693832065,2.79299831,28500.0,28499.0,3.08281295]
[1680693832272,2.79299831,28500.0,28499.0,3.36275929]
[1680693832471,2.79299831,28500.0,28499.0,3.38384787]
[1680693832938,2.49483002,28500.0,28499.0,3.38384787]
[1680693833178,2.31581389,28500.0,28499.0,3.38516787]
[1680693833604,2.31581389,28500.0,28499.0,3.38384787]
[1680693834211,2.31581389,28500.0,28499.0,3.35584787]
[1680693834413,2.31581389,28500.0,28499.0,3.10390153]
[1680693834648,2.31114889,28500.0,28499.0,3.10390153]
[1680693834859,2.31021189,28500.0,28499.0,3.13322153]
[1680693835290,2.31021189,28500.0,28499.0,3.28102153]
[1680693835511,2.30631189,28500.0,28499.0,3.25302153]
[1680693835718,2.30631189,28500.0,28499.0,3.25170153]
[1680693835925,2.30631189,28500.0,28499.0,3.25302153]
[1680693836134,2.28732576,28500.0,28499.0,3.25302153]
[1680693836547,2.28762576,28500.0,28499.0,3.49333932]
[1680693836768,0.02398,28508.0,28499.0,3.49333932]
[1680693836769,0.02398,28508.0,28504.0,1.5]
[1680693836982,0.01004217,28508.0,28507.0,2.32012328]
[1680693837195,0.0071962,28509.0,28508.0,0.57012328]
[1680693837405,0.0071962,28509.0,28508.0,1.31943684]
[1680693837632,0.0071962,28509.0,28508.0,1.24903684]
[1680693837885,0.0071962,28509.0,28508.0,1.39633684]
[1680693838103,0.0071962,28509.0,28508.0,2.09639684]
[1680693838321,0.0071962,28509.0,28508.0,2.09645684]
[1680693838548,0.0071962,28509.0,28508.0,2.12445684]
[1680693838762,0.0071962,28509.0,28508.0,2.11933684]
[1680693838962,0.0071962,28509.0,28508.0,2.44593684]
[1680693839406,0.0071962,28509.0,28508.0,2.51943684]
[1680693840498,0.0071962,28509.0,28508.0,2.77000958]
[1680693841141,0.0071962,28509.0,28508.0,2.76897895]
[1680693841581,0.00021,28514.0,28508.0,2.76897895]
[1680693841582,0.00021,28514.0,28513.0,2.32012328]
[1680693841855,0.02398,28516.0,28513.0,2.32012328]
[1680693841856,0.0153662,28516.0,28514.0,0.2106]
[1680693842074,0.0153662,28516.0,28515.0,0.65799784]
[1680693842293,0.0153662,28516.0,28515.0,1.26905008]
[1680693842532,0.0153662,28516.0,28515.0,1.40925008]
[1680693842749,0.0153662,28516.0,28515.0,1.55695008]
[1680693842964,0.0153662,28516.0,28515.0,2.28513008]
[1680693843179,0.0153662,28516.0,28515.0,2.49370943]
[1680693843364,0.0153662,28516.0,28515.0,2.86570943]
[1680693843614,0.0153662,28516.0,28515.0,2.89370943]
[1680693844862,0.0153662,28516.0,28515.0,2.81980943]
[1680693845461,0.0153662,28516.0,28515.0,2.90302019]
[1680693846057,0.0153662,28516.0,28515.0,2.77796724]
[1680693846262,0.0153662,28516.0,28515.0,2.74996724]
[1680693846443,0.0153662,28516.0,28515.0,2.77796724]
[1680693846648,0.0153662,28516.0,28515.0,2.74996724]
[1680693846879,0.0153662,28516.0,28515.0,2.77796724]
[1680693847299,0.0153662,28516.0,28515.0,2.79965655]
[1680693847512,0.01263103,28516.0,28515.0,2.82694823]
[1680693847717,0.01263103,28516.0,28515.0,2.82682823]
[1680693848354,0.0038469,28516.0,28515.0,3.02131779]
[1680693848568,0.00114592,28516.0,28515.0,3.04931779]
[1680693848994,0.00114592,28516.0,28515.0,2.99331779]
[1680693849218,0.00114592,28516.0,28515.0,3.02131779]
[1680693849431,0.02398,28517.0,28516.0,1.25]
[1680693849650,0.02398,28517.0,28516.0,3.05517514]
[1680693850061,0.02398,28517.0,28516.0,3.07271887]
[1680693850469,0.02132185,28517.0,28516.0,3.09662398]
[1680693851126,0.02132185,28517.0,28516.0,7.40662398]
[1680693851359,0.02132185,28517.0,28516.0,7.32334108]
[1680693851563,0.01866456,28517.0,28516.0,7.32334108]
[1680693851762,0.19866456,28517.0,28516.0,7.35134108]
[1680693852014,0.19866456,28517.0,28516.0,7.35146108]
[1680693852203,0.19866456,28517.0,28516.0,7.75146108]
[1680693852430,0.19866456,28517.0,28516.0,7.95020382]
[1680693852613,0.19600869,28517.0,28516.0,7.95020382]
[1680693852974,0.19600869,28517.0,28516.0,7.84850382]
[1680693853170,0.19600869,28517.0,28516.0,7.87650382]
[1680693853404,0.19338602,28517.0,28516.0,8.06841034]
[1680693853603,0.19338602,28517.0,28516.0,7.98511477]
[1680693853823,0.19338602,28517.0,28516.0,7.94336694]
[1680693854200,0.1844396,28517.0,28516.0,7.94336694]
[1680693854411,0.1844396,28517.0,28516.0,7.98511477]
[1680693854620,0.17937091,28517.0,28516.0,8.00922015]
[1680693854833,0.17937091,28517.0,28516.0,8.17595731]
[1680693855023,0.17937091,28517.0,28516.0,8.00922015]
[1680693855262,0.17937091,28517.0,28516.0,7.98122015]
[1680693855476,0.17430772,28517.0,28516.0,8.00527057]
[1680693855906,0.17430772,28517.0,28516.0,8.03327057]
[1680693856117,0.17430772,28517.0,28516.0,8.11649561]
[1680693856451,0.1692518,28517.0,28516.0,8.03327057]
[1680693856657,0.1692518,28517.0,28516.0,8.08850012]
[1680693857070,0.15102361,28517.0,28516.0,7.96351738]
[1680693857286,0.15049759,28517.0,28516.0,7.96339738]
[1680693857514,0.1454724,28517.0,28516.0,7.96339738]
[1680693857707,0.1454724,28517.0,28516.0,7.99139738]
[1680693857912,0.1454724,28517.0,28516.0,7.96339738]
[1680693858139,0.1454724,28517.0,28516.0,7.99139738]
[1680693858487,0.1454724,28517.0,28516.0,7.94344185]
[1680693858694,0.1454724,28517.0,28516.0,7.7867123]
[1680693858896,0.1454724,28517.0,28516.0,7.77849812]
[1680693859466,0.1454724,28517.0,28516.0,7.85179812]
[1680693859893,0.1454724,28517.0,28516.0,7.92569812]
[1680693860267,0.1454724,28517.0,28516.0,7.94324185]
[1680693860474,0.14053695,28517.0,28516.0,7.99259638]
[1680693861317,0.14053695,28517.0,28516.0,8.11757912]
[1680693861454,0.14053695,28517.0,28516.0,7.94324185]
[1680693863089,0.02398,28518.0,28516.0,7.8600123]
[1680693863307,0.02398,28518.0,28517.0,0.88862424]
[1680693863518,0.02398,28518.0,28517.0,1.58862424]
[1680693864598,0.02398,28518.0,28517.0,1.67185379]
[1680693865015,0.02398,28518.0,28517.0,1.58862424]
[1680693865215,0.02398,28518.0,28517.0,1.61662424]
[1680693865437,0.02398,28518.0,28517.0,1.92765467]
[1680693866241,0.02398,28518.0,28517.0,2.01088422]
[1680693866385,0.02398,28518.0,28517.0,1.92765467]
[1680693867839,0.02398,28518.0,28517.0,2.01088422]
[1680693868466,0.02398,28518.0,28517.0,2.08478422]
[1680693868676,0.02398,28518.0,28517.0,2.01088422]
[1680693869273,0.02398,28518.0,28517.0,2.41088422]
[1680693870319,0.02398,28518.0,28517.0,2.45263741]
[1680693871361,0.16398,28518.0,28517.0,2.53601293]
[1680693871772,0.16398,28518.0,28517.0,2.45263741]
[1680693874018,0.16398,28518.0,28517.0,2.61937457]
[1680693874293,0.16398,28518.0,28517.0,2.49439183]
[1680693874607,0.16398,28518.0,28517.0,2.54399966]
[1680693874608,0.15903122,28518.0,28517.0,2.54399966]
[1680693874811,0.15903122,28518.0,28517.0,2.6691696]
[1680693875243,0.15903122,28518.0,28517.0,2.54399966]
[1680693875663,0.15903122,28518.0,28517.0,2.25122845]
[1680693876123,0.15903122,28518.0,28517.0,2.36791336]
[1680693876327,0.15903122,28518.0,28517.0,2.28457064]
[1680693876529,0.15903122,28518.0,28517.0,2.25657064]
[1680693876739,0.15903122,28518.0,28517.0,1.91857834]
[1680693876967,0.15903122,28518.0,28517.0,1.89057834]
[1680693877219,0.15903122,28518.0,28517.0,1.91857834]
[1680693877629,0.15903122,28518.0,28517.0,2.31490419]
[1680693878242,0.15903122,28518.0,28517.0,2.48187554]
[1680693878453,0.15903122,28518.0,28517.0,1.70999899]
[1680693878861,0.15903122,28518.0,28517.0,2.05383283]
[1680693879268,0.15903122,28518.0,28517.0,2.08582958]
[1680693881096,0.15903122,28518.0,28517.0,2.09432958]
[1680693881300,0.15903122,28518.0,28517.0,1.71849899]
[1680693881507,0.15903122,28518.0,28517.0,2.16805346]
[1680693882145,0.15903122,28518.0,28517.0,1.71849899]
[1680693882354,0.15903122,28518.0,28517.0,2.08759899]
[1680693883397,0.15903122,28518.0,28517.0,2.08759899]
[1680693884459,0.15903122,28518.0,28517.0,2.45764407]
[1680693884876,0.15903122,28518.0,28517.0,2.82261676]
[1680693885085,0.10903122,28518.0,28517.0,2.45764407]
[1680693885297,0.10903122,28518.0,28517.0,2.16137899]
[1680693887301,0.10903122,28518.0,28517.0,2.33565445]
[1680693890915,0.10903122,28518.0,28517.0,2.16034445]
[1680693891338,0.02398,28519.0,28518.0,0.5191]
[1680693891516,0.02398,28519.0,28518.0,1.89555907]
[1680693891726,0.02398,28519.0,28518.0,2.26662131]
[1680693892302,0.02398,28519.0,28518.0,2.26674131]
[1680693892875,0.02398,28519.0,28518.0,2.26662131]
[1680693893199,0.02398,28519.0,28518.0,1.89555907]
[1680693893396,0.01904706,28519.0,28518.0,2.16698648]
[1680693893770,0.01904706,28519.0,28518.0,2.16698478]
[1680693894003,0.01904706,28519.0,28518.0,1.823923]
[1680693894408,0.01904706,28519.0,28518.0,2.26890431]